[Event "Live Chess"]
[Site "Chess.com"]
[Date "2024.06.01"]
[Round "-"]
[White "MellowAesthetic"]
[Black "AndyJWise"]
[Result "1-0"]
[WhiteElo "2071"]
[BlackElo "1045"]
[TimeControl "300"]
[EndTime "14:32:37 PDT"]
[Termination "MellowAesthetic won by resignation"]

1. e4 {[%clk 0:04:58.1]} 1... c6 {[%clk 0:04:56.4]} 2. d4 {[%clk 0:04:56.7]}
2... d5 {[%clk 0:04:55.8]} 3. exd5 {[%clk 0:04:56.6]} 3... cxd5 {[%clk
0:04:55.5]} 4. c4 {[%clk 0:04:56.2]} 4... Nf6 {[%clk 0:04:51.8]} 5. Nc3 {[%clk
0:04:55.5]} 5... Bg4 {[%clk 0:04:47.6]} 6. Qb3 {[%clk 0:04:49.5]} 6... Qb6
{[%clk 0:04:42.5]} 7. cxd5 {[%clk 0:04:24.1]} 7... Qxb3 {[%clk 0:04:36.8]} 8.
axb3 {[%clk 0:04:22.6]} 8... Nbd7 {[%clk 0:04:28.1]} 9. h3 {[%clk 0:04:11]} 9...
Bh5 {[%clk 0:04:24.4]} 10. g4 {[%clk 0:04:08.5]} 10... Bg6 {[%clk 0:04:22.7]}
11. Bg2 {[%clk 0:03:55.9]} 11... h6 {[%clk 0:04:18.8]} 12. Nge2 {[%clk
0:03:30.5]} 12... a6 {[%clk 0:04:17]} 13. Bf4 {[%clk 0:02:49.3]} 13... e6 {[%clk
0:04:12.9]} 14. d6 {[%clk 0:02:41.7]} 14... Ra7 {[%clk 0:03:49.5]} 15. Nb5
{[%clk 0:02:36.1]} 15... axb5 {[%clk 0:03:46.1]} 16. Rxa7 {[%clk 0:02:34.7]} 1-0

[Event "Live Chess"]
[Site "Chess.com"]
[Date "2024.06.01"]
[Round "-"]
[White "imchessive"]
[Black "GEMdzq"]
[Result "0-1"]
[WhiteElo "1594"]
[BlackElo "2316"]
[TimeControl "300"]
[EndTime "14:32:54 PDT"]
[Termination "GEMdzq won by resignation"]

1. d4 {[%clk 0:04:58.7]} 1... Nf6 {[%clk 0:04:58]} 2. c4 {[%clk 0:04:56.7]} 2...
e5 {[%clk 0:04:56.6]} 3. dxe5 {[%clk 0:04:53.8]} 3... Ng4 {[%clk 0:04:55.6]} 4.
Nf3 {[%clk 0:04:52]} 4... Nc6 {[%clk 0:04:52.8]} 5. g3 {[%clk 0:04:48.6]} 5...
Bc5 {[%clk 0:04:47.5]} 6. e3 {[%clk 0:04:45.4]} 6... Ngxe5 {[%clk 0:04:45.3]} 7.
Nxe5 {[%clk 0:04:43.7]} 7... Nxe5 {[%clk 0:04:45.2]} 8. Bg2 {[%clk 0:04:42.5]}
8... O-O {[%clk 0:04:44.1]} 9. O-O {[%clk 0:04:41.2]} 9... d6 {[%clk 0:04:43]}
10. Qb3 {[%clk 0:04:38.8]} 10... Rb8 {[%clk 0:04:39.4]} 11. Nc3 {[%clk
0:04:36.6]} 11... Bg4 {[%clk 0:04:37.3]} 12. Na4 {[%clk 0:04:26.8]} 12... Nf3+
{[%clk 0:04:31]} 13. Kh1 {[%clk 0:04:12]} 13... Qf6 {[%clk 0:04:29.4]} 14. Nxc5
{[%clk 0:04:05]} 14... dxc5 {[%clk 0:04:29.3]} 15. e4 {[%clk 0:03:59.5]} 15...
Nd4 {[%clk 0:04:27]} 16. Qd3 {[%clk 0:03:48.6]} 16... Be2 {[%clk 0:04:25.7]} 17.
Qe3 {[%clk 0:03:35.2]} 17... Bxf1 {[%clk 0:04:24.5]} 18. Bxf1 {[%clk 0:03:35.1]}
18... Nc2 {[%clk 0:04:23.9]} 19. Qxc5 {[%clk 0:03:29.3]} 19... Nxa1 {[%clk
0:04:23.5]} 20. Bd3 {[%clk 0:03:26.8]} 20... Rbd8 {[%clk 0:04:22.6]} 21. Qe3
{[%clk 0:03:22.1]} 21... Rxd3 {[%clk 0:04:21]} 22. Qxd3 {[%clk 0:03:20.8]} 22...
Qxf2 {[%clk 0:04:20]} 23. Be3 {[%clk 0:03:11.1]} 23... Qf3+ {[%clk 0:04:18.9]}
24. Kg1 {[%clk 0:03:09.2]} 24... Nc2 {[%clk 0:04:18]} 25. Bxa7 {[%clk
0:02:59.9]} 25... Qxd3 {[%clk 0:04:16.5]} 0-1

[Event "Live Chess"]
[Site "Chess.com"]
[Date "2024.06.01"]
[Round "-"]
[White "road2gm5000"]
[Black "f4nomore"]
[Result "1-0"]
[WhiteElo "1092"]
[BlackElo "1233"]
[TimeControl "300"]
[EndTime "14:33:14 PDT"]
[Termination "road2gm5000 won by resignation"]

1. e4 {[%clk 0:04:58.2]} 1... g6 {[%clk 0:04:58.1]} 2. d4 {[%clk 0:04:57]} 2...
Bg7 {[%clk 0:04:56.6]} 3. Nf3 {[%clk 0:04:56.4]} 3... d6 {[%clk 0:04:50.3]} 4.
Nc3 {[%clk 0:04:54.7]} 4... Nf6 {[%clk 0:04:46.9]} 5. Bd3 {[%clk 0:04:53.8]}
5... O-O {[%clk 0:04:44.2]} 6. Be3 {[%clk 0:04:53.1]} 6... Nbd7 {[%clk
0:04:42.6]} 7. O-O {[%clk 0:04:52.1]} 7... b6 {[%clk 0:04:41.4]} 8. Qe2 {[%clk
0:04:49.1]} 8... Ng4 {[%clk 0:04:39.3]} 9. h3 {[%clk 0:04:46.7]} 9... Nxe3
{[%clk 0:04:37.6]} 10. Qxe3 {[%clk 0:04:46.6]} 10... Nf6 {[%clk 0:04:34.9]} 11.
Rfe1 {[%clk 0:04:42.5]} 11... Bb7 {[%clk 0:04:33.7]} 12. e5 {[%clk 0:04:38.7]}
12... dxe5 {[%clk 0:04:31.9]} 13. dxe5 {[%clk 0:04:37]} 13... Nd5 {[%clk
0:04:29]} 14. Nxd5 {[%clk 0:04:35]} 14... Bxd5 {[%clk 0:04:26.2]} 15. Be4 {[%clk
0:04:33.3]} 15... Bxe4 {[%clk 0:04:24]} 16. Qxe4 {[%clk 0:04:32.8]} 16... e6
{[%clk 0:04:22.4]} 17. Rad1 {[%clk 0:04:31.4]} 17... Qe7 {[%clk 0:04:21.2]} 18.
Rd2 {[%clk 0:04:21.1]} 18... Rad8 {[%clk 0:04:14.2]} 19. Red1 {[%clk 0:04:20.1]}
19... Rxd2 {[%clk 0:04:00.3]} 20. Rxd2 {[%clk 0:04:20]} 20... Rd8 {[%clk
0:03:57.1]} 21. Rxd8+ {[%clk 0:04:17.8]} 21... Qxd8 {[%clk 0:03:55.7]} 22. Qd3
{[%clk 0:04:16.9]} 22... Qxd3 {[%clk 0:03:50.3]} 23. cxd3 {[%clk 0:04:16.8]}
23... Bf8 {[%clk 0:03:40.5]} 24. d4 {[%clk 0:04:12.4]} 24... c5 {[%clk
0:03:36.1]} 25. Kf1 {[%clk 0:04:09.6]} 25... cxd4 {[%clk 0:03:29.7]} 26. Nxd4
{[%clk 0:04:09.5]} 26... Bc5 {[%clk 0:03:26.7]} 27. Nc6 {[%clk 0:04:07.2]} 27...
a6 {[%clk 0:03:22.9]} 28. Ke2 {[%clk 0:04:06.2]} 28... Kg7 {[%clk 0:03:20.4]}
29. f3 {[%clk 0:04:05.6]} 29... f6 {[%clk 0:03:18.4]} 30. exf6+ {[%clk
0:04:02.3]} 30... Kxf6 {[%clk 0:03:16.9]} 31. Kd3 {[%clk 0:04:01.8]} 31... Bf2
{[%clk 0:03:10.1]} 32. Ke4 {[%clk 0:03:59.3]} 32... h5 {[%clk 0:03:07.3]} 33.
Nb8 {[%clk 0:03:53.8]} 33... a5 {[%clk 0:03:04.4]} 34. Nc6 {[%clk 0:03:52.9]}
34... g5 {[%clk 0:02:58.3]} 35. b3 {[%clk 0:03:51.7]} 35... g4 {[%clk
0:02:48.7]} 36. hxg4 {[%clk 0:03:49.6]} 36... hxg4 {[%clk 0:02:46.1]} 37. fxg4
{[%clk 0:03:48.8]} 37... Kg5 {[%clk 0:02:43.1]} 38. Kf3 {[%clk 0:03:46.9]} 38...
Bg1 {[%clk 0:02:38]} 39. Ne5 {[%clk 0:03:45.8]} 39... Bd4 {[%clk 0:02:29.6]} 40.
Nd3 {[%clk 0:03:42]} 40... e5 {[%clk 0:02:26.5]} 41. g3 {[%clk 0:03:37.1]} 41...
Bc3 {[%clk 0:02:18.9]} 42. Nf2 {[%clk 0:03:32.4]} 42... Bd4 {[%clk 0:02:10.9]}
43. Ne4+ {[%clk 0:03:30.9]} 43... Kg6 {[%clk 0:02:07.4]} 44. Nd6 {[%clk
0:03:20.4]} 44... Kg5 {[%clk 0:02:03.9]} 45. Nf7+ {[%clk 0:03:19.6]} 45... Kg6
{[%clk 0:02:00.7]} 46. Nd8 {[%clk 0:03:16.3]} 46... Kg5 {[%clk 0:01:57.9]} 47.
Ne6+ {[%clk 0:03:15.4]} 47... Kf6 {[%clk 0:01:55.9]} 48. Nxd4 {[%clk 0:03:14.5]}
48... exd4 {[%clk 0:01:54.4]} 49. Ke4 {[%clk 0:03:14]} 49... d3 {[%clk
0:01:51.6]} 50. Kxd3 {[%clk 0:03:13.3]} 50... Kg5 {[%clk 0:01:50.6]} 51. Kc4
{[%clk 0:03:12.7]} 51... Kxg4 {[%clk 0:01:49.8]} 52. Kb5 {[%clk 0:03:12.6]}
52... Kxg3 {[%clk 0:01:49.2]} 53. Kxb6 {[%clk 0:03:12.5]} 53... Kf4 {[%clk
0:01:48.3]} 54. Kxa5 {[%clk 0:03:12.4]} 54... Ke5 {[%clk 0:01:47.5]} 55. b4
{[%clk 0:03:12.3]} 55... Kd6 {[%clk 0:01:46.6]} 56. Ka6 {[%clk 0:03:12.2]} 56...
Kc7 {[%clk 0:01:45.7]} 57. b5 {[%clk 0:03:12.1]} 57... Kb8 {[%clk 0:01:44.6]}
58. b6 {[%clk 0:03:11.6]} 58... Ka8 {[%clk 0:01:43.6]} 59. a4 {[%clk 0:03:11]}
59... Kb8 {[%clk 0:01:41.5]} 60. a5 {[%clk 0:03:10.9]} 60... Ka8 {[%clk
0:01:40.4]} 61. Kb5 {[%clk 0:03:10.8]} 61... Kb8 {[%clk 0:01:37.2]} 62. a6
{[%clk 0:03:10.7]} 62... Ka8 {[%clk 0:01:36.1]} 63. Kc6 {[%clk 0:03:09.4]} 63...
Kb8 {[%clk 0:01:34.7]} 64. Kd7 {[%clk 0:03:06]} 64... Ka8 {[%clk 0:01:30]} 65.
a7 {[%clk 0:02:53.6]} 65... Kb7 {[%clk 0:01:26.7]} 66. Kd6 {[%clk 0:02:52.9]}
66... Ka8 {[%clk 0:01:23.9]} 67. Kc5 {[%clk 0:02:49.2]} 67... Kb7 {[%clk
0:01:22.2]} 68. Kb5 {[%clk 0:02:45.8]} 68... Ka8 {[%clk 0:01:20.7]} 69. Ka5
{[%clk 0:02:43.4]} 69... Kb7 {[%clk 0:01:19.4]} 70. a8=Q+ {[%clk 0:02:41.7]}
70... Kxa8 {[%clk 0:01:17.9]} 71. Ka6 {[%clk 0:02:41.6]} 71... Kb8 {[%clk
0:01:16.5]} 72. b7 {[%clk 0:02:40.1]} 72... Kc7 {[%clk 0:01:11.6]} 73. Ka7
{[%clk 0:02:40]} 1-0

[Event "Live Chess"]
[Site "Chess.com"]
[Date "2024.06.01"]
[Round "-"]
[White "CheckThis4"]
[Black "McFim"]
[Result "1-0"]
[WhiteElo "2676"]
[BlackElo "1612"]
[TimeControl "300"]
[EndTime "14:33:29 PDT"]
[Termination "CheckThis4 won by resignation"]

1. d4 {[%clk 0:04:58.1]} 1... d5 {[%clk 0:04:58.6]} 2. Nc3 {[%clk 0:04:57.5]}
2... Nf6 {[%clk 0:04:56]} 3. e4 {[%clk 0:04:57]} 3... dxe4 {[%clk 0:04:54.5]} 4.
f3 {[%clk 0:04:56.5]} 4... exf3 {[%clk 0:04:52.2]} 5. Nxf3 {[%clk 0:04:55.5]}
5... Bf5 {[%clk 0:04:50.2]} 6. Ne5 {[%clk 0:04:48.3]} 6... c6 {[%clk 0:04:46.6]}
7. g4 {[%clk 0:04:40.5]} 7... Be6 {[%clk 0:04:42.5]} 8. g5 {[%clk 0:04:25.2]}
8... Nd5 {[%clk 0:04:40.6]} 9. Bg2 {[%clk 0:04:19.2]} 9... Nxc3 {[%clk
0:04:37.3]} 10. bxc3 {[%clk 0:04:19.1]} 10... Nd7 {[%clk 0:04:33]} 11. Nd3
{[%clk 0:04:13]} 11... g6 {[%clk 0:04:29.6]} 12. Nf4 {[%clk 0:04:06.5]} 12...
Bf5 {[%clk 0:04:23.2]} 13. Rb1 {[%clk 0:04:05.3]} 13... Qc8 {[%clk 0:04:18.8]}
14. Qe2 {[%clk 0:04:02.4]} 14... e6 {[%clk 0:04:12.3]} 15. h4 {[%clk 0:03:59.4]}
15... Bg7 {[%clk 0:04:10.1]} 16. h5 {[%clk 0:03:58.1]} 16... Nb6 {[%clk
0:03:54.6]} 17. Ba3 {[%clk 0:03:50.5]} 17... Nd5 {[%clk 0:03:46]} 18. Bxd5
{[%clk 0:03:44.7]} 18... cxd5 {[%clk 0:03:40]} 19. Nxd5 {[%clk 0:03:43]} 19...
a6 {[%clk 0:03:24.7]} 20. h6 {[%clk 0:03:35.6]} 20... Bf8 {[%clk 0:03:17.7]} 21.
Bxf8 {[%clk 0:03:23.8]} 21... Rxf8 {[%clk 0:03:14.9]} 22. Nf6+ {[%clk 0:03:20]}
22... Kd8 {[%clk 0:03:11]} 23. c4 {[%clk 0:03:11.7]} 23... Rh8 {[%clk 0:03:00]}
24. O-O {[%clk 0:03:05.9]} 24... Qc7 {[%clk 0:02:43.6]} 25. Rb3 {[%clk
0:03:03.2]} 25... Rc8 {[%clk 0:02:39.6]} 26. c5 {[%clk 0:03:01.8]} 26... Qc6
{[%clk 0:02:35.7]} 27. c4 {[%clk 0:02:53.5]} 27... Rc7 {[%clk 0:02:27.9]} 28.
Rb6 {[%clk 0:02:39.9]} 28... Qa4 {[%clk 0:02:18.7]} 29. Rf3 {[%clk 0:02:29.1]}
29... Kc8 {[%clk 0:02:05.4]} 30. Rfb3 {[%clk 0:02:26.2]} 30... Rd8 {[%clk
0:01:58.2]} 31. d5 {[%clk 0:02:04.5]} 31... exd5 {[%clk 0:01:52.3]} 32. Nxd5
{[%clk 0:02:03]} 32... Rxd5 {[%clk 0:01:37.5]} 33. cxd5 {[%clk 0:02:01.7]} 33...
Qd4+ {[%clk 0:01:28.4]} 34. Qe3 {[%clk 0:01:41.5]} 34... Qxe3+ {[%clk
0:00:46.4]} 35. Rxe3 {[%clk 0:01:39.4]} 35... Rxc5 {[%clk 0:00:43.1]} 36. d6
{[%clk 0:01:34.1]} 36... Be6 {[%clk 0:00:36.8]} 37. Kf2 {[%clk 0:01:28.2]} 37...
Rxg5 {[%clk 0:00:32.8]} 38. Rc3+ {[%clk 0:01:26.8]} 38... Kb8 {[%clk 0:00:26]}
39. Rc7 {[%clk 0:01:24.4]} 39... Bd5 {[%clk 0:00:17]} 40. Re7 {[%clk 0:01:18.3]}
40... Ka7 {[%clk 0:00:13.1]} 41. d7 {[%clk 0:01:15.3]} 41... Kxb6 {[%clk
0:00:10.2]} 42. d8=Q+ {[%clk 0:01:14.2]} 42... Kc5 {[%clk 0:00:08.8]} 43. Rc7+
{[%clk 0:01:12.8]} 43... Kb6 {[%clk 0:00:03.6]} 44. Qxg5 {[%clk 0:01:10.3]}
44... Kxc7 {[%clk 0:00:02.3]} 45. Qxd5 {[%clk 0:01:09.3]} 1-0

[Event "Live Chess"]
[Site "Chess.com"]
[Date "2024.06.01"]
[Round "-"]
[White "Stanbad1"]
[Black "degringolade64"]
[Result "1-0"]
[WhiteElo "2641"]
[BlackElo "2145"]
[TimeControl "300"]
[EndTime "14:33:31 PDT"]
[Termination "Stanbad1 won by checkmate"]

1. d4 {[%clk 0:04:54.7]} 1... Nf6 {[%clk 0:04:57.3]} 2. Nc3 {[%clk 0:04:51.5]}
2... d5 {[%clk 0:04:55.2]} 3. Bf4 {[%clk 0:04:48.8]} 3... e6 {[%clk 0:04:54.3]}
4. Nb5 {[%clk 0:04:47.2]} 4... Na6 {[%clk 0:04:52.6]} 5. e3 {[%clk 0:04:46.2]}
5... Be7 {[%clk 0:04:51.3]} 6. Nf3 {[%clk 0:04:45]} 6... O-O {[%clk 0:04:50.6]}
7. h3 {[%clk 0:04:44.1]} 7... Bd7 {[%clk 0:04:44.8]} 8. Be2 {[%clk 0:04:42.3]}
8... Be8 {[%clk 0:04:41.3]} 9. O-O {[%clk 0:04:40.1]} 9... c6 {[%clk 0:04:40.2]}
10. Nc3 {[%clk 0:04:38.5]} 10... c5 {[%clk 0:04:39.4]} 11. Ne5 {[%clk
0:04:36.8]} 11... Nb8 {[%clk 0:04:33.6]} 12. Bf3 {[%clk 0:04:32]} 12... Nfd7
{[%clk 0:04:31.5]} 13. Ne2 {[%clk 0:04:29.2]} 13... Nxe5 {[%clk 0:04:29.2]} 14.
Bxe5 {[%clk 0:04:27.6]} 14... Nc6 {[%clk 0:04:26.2]} 15. Bh2 {[%clk 0:04:26.5]}
15... Qb6 {[%clk 0:04:09.1]} 16. Rb1 {[%clk 0:04:20.7]} 16... f6 {[%clk
0:04:04.2]} 17. c3 {[%clk 0:04:14.3]} 17... Bg6 {[%clk 0:04:03.2]} 18. Rc1
{[%clk 0:04:10.5]} 18... Qxb2 {[%clk 0:04:00.2]} 19. Nf4 {[%clk 0:04:06.4]}
19... Bf7 {[%clk 0:03:43.9]} 20. Rb1 {[%clk 0:04:03.3]} 20... Qxc3 {[%clk
0:03:42.1]} 21. Rxb7 {[%clk 0:04:00.7]} 21... cxd4 {[%clk 0:03:40.7]} 22. exd4
{[%clk 0:03:58.3]} 22... Bd6 {[%clk 0:03:36]} 23. Bg4 {[%clk 0:03:47.6]} 23...
Bxf4 {[%clk 0:03:28]} 24. Bxf4 {[%clk 0:03:45.9]} 24... Qxd4 {[%clk 0:03:27.5]}
25. Qc1 {[%clk 0:03:41.9]} 25... Ne5 {[%clk 0:03:22.4]} 26. Rd1 {[%clk
0:03:39.6]} 26... Qc4 {[%clk 0:03:03.8]} 27. Qxc4 {[%clk 0:03:31.8]} 27... Nxc4
{[%clk 0:03:02.1]} 28. Re1 {[%clk 0:03:24.9]} 28... e5 {[%clk 0:03:00]} 29. Bc1
{[%clk 0:03:22.9]} 29... a5 {[%clk 0:02:45.2]} 30. h4 {[%clk 0:03:14.8]} 30...
Rab8 {[%clk 0:02:40]} 31. Rc7 {[%clk 0:03:11.2]} 31... Rb1 {[%clk 0:02:28.1]}
32. Bf5 {[%clk 0:03:04]} 32... Ra1 {[%clk 0:02:24.7]} 33. Kf1 {[%clk 0:03:01.2]}
33... g6 {[%clk 0:02:18]} 34. Bd3 {[%clk 0:02:57.4]} 34... Rxa2 {[%clk
0:02:15.2]} 35. Bh6 {[%clk 0:02:54.6]} 35... Rd8 {[%clk 0:02:11]} 36. h5 {[%clk
0:02:53.2]} 36... e4 {[%clk 0:01:57.9]} 37. Be2 {[%clk 0:02:50.5]} 37... Ne5
{[%clk 0:01:50.5]} 38. hxg6 {[%clk 0:02:47.9]} 38... hxg6 {[%clk 0:01:49.1]} 39.
Be3 {[%clk 0:02:45.7]} 39... d4 {[%clk 0:01:44.5]} 40. Bf4 {[%clk 0:02:43.3]}
40... Re8 {[%clk 0:01:32.4]} 41. Bb5 {[%clk 0:02:39.9]} 41... Nd3 {[%clk
0:01:07]} 42. Bxe8 {[%clk 0:02:27.1]} 42... Bxe8 {[%clk 0:01:04.6]} 43. Rxe4
{[%clk 0:02:23.8]} 43... Rxf2+ {[%clk 0:00:46.3]} 44. Kg1 {[%clk 0:02:21.6]}
44... Nxf4 {[%clk 0:00:44.8]} 45. Rxe8# {[%clk 0:02:20.3]} 1-0

[Event "Live Chess"]
[Site "Chess.com"]
[Date "2024.06.01"]
[Round "-"]
[White "Queensandpawns"]
[Black "chessfiction"]
[Result "1-0"]
[WhiteElo "2372"]
[BlackElo "2369"]
[TimeControl "300"]
[EndTime "14:33:37 PDT"]
[Termination "Queensandpawns won by resignation"]

1. e4 {[%clk 0:04:56.4]} 1... c6 {[%clk 0:04:58.9]} 2. Ne2 {[%clk 0:04:55.4]}
2... d5 {[%clk 0:04:58.6]} 3. exd5 {[%clk 0:04:47.4]} 3... cxd5 {[%clk
0:04:56.7]} 4. Ng3 {[%clk 0:04:47.3]} 4... e5 {[%clk 0:04:54.3]} 5. d4 {[%clk
0:04:47.2]} 5... exd4 {[%clk 0:04:52.6]} 6. Qxd4 {[%clk 0:04:46.1]} 6... Nc6
{[%clk 0:04:50.5]} 7. Bb5 {[%clk 0:04:44.6]} 7... Nf6 {[%clk 0:04:47.4]} 8. O-O
{[%clk 0:04:43.5]} 8... Be7 {[%clk 0:04:46.8]} 9. Nc3 {[%clk 0:04:41.4]} 9...
O-O {[%clk 0:04:45.4]} 10. Bxc6 {[%clk 0:04:40.5]} 10... bxc6 {[%clk 0:04:44.9]}
11. Re1 {[%clk 0:04:39.5]} 11... Re8 {[%clk 0:04:41.2]} 12. Bf4 {[%clk
0:04:38.1]} 12... Be6 {[%clk 0:04:40.1]} 13. Rad1 {[%clk 0:04:35.5]} 13... c5
{[%clk 0:04:38.4]} 14. Qd2 {[%clk 0:04:34.9]} 14... d4 {[%clk 0:04:36.7]} 15.
Nce4 {[%clk 0:04:34.3]} 15... Nd5 {[%clk 0:04:35.4]} 16. Nh5 {[%clk 0:04:26.9]}
16... Nxf4 {[%clk 0:04:08.3]} 17. Nxf4 {[%clk 0:04:26.8]} 17... Bf5 {[%clk
0:04:02.7]} 18. Ng3 {[%clk 0:04:23.2]} 18... Bg4 {[%clk 0:03:54.5]} 19. f3
{[%clk 0:04:22]} 19... Bd7 {[%clk 0:03:52.7]} 20. Nd5 {[%clk 0:04:16.5]} 20...
Bd6 {[%clk 0:03:45]} 21. Ne4 {[%clk 0:04:10.5]} 21... Bc6 {[%clk 0:03:17.6]} 22.
c4 {[%clk 0:03:51.4]} 22... Bf8 {[%clk 0:02:56.6]} 23. Nf4 {[%clk 0:03:49.6]}
23... Qc7 {[%clk 0:02:51.9]} 24. Nd3 {[%clk 0:03:43.8]} 24... Bd7 {[%clk
0:02:44.1]} 25. Qg5 {[%clk 0:03:41.5]} 25... Be7 {[%clk 0:02:37.6]} 26. Qh5
{[%clk 0:03:40.9]} 26... g6 {[%clk 0:02:33.3]} 27. Qh6 {[%clk 0:03:38.1]} 27...
Bf5 {[%clk 0:02:26.3]} 28. Ndxc5 {[%clk 0:03:33.9]} 28... Bxc5 {[%clk
0:02:12.9]} 29. Nf6+ {[%clk 0:03:32.5]} 1-0

[Event "Live Chess"]
[Site "Chess.com"]
[Date "2024.06.01"]
[Round "-"]
[White "Crowded_House"]
[Black "ogpin"]
[Result "0-1"]
[WhiteElo "1732"]
[BlackElo "2195"]
[TimeControl "300"]
[EndTime "14:33:38 PDT"]
[Termination "ogpin won by resignation"]

1. d4 {[%clk 0:04:57.6]} 1... a5 {[%clk 0:04:59.9]} 2. Bg5 {[%clk 0:04:54]} 2...
Ra6 {[%clk 0:04:59.8]} 3. e3 {[%clk 0:04:51.6]} 3... h6 {[%clk 0:04:58.6]} 4.
Bxa6 {[%clk 0:04:47.1]} 4... Nxa6 {[%clk 0:04:58.5]} 5. Bh4 {[%clk 0:04:43.5]}
5... g5 {[%clk 0:04:57.9]} 6. Bg3 {[%clk 0:04:42.3]} 6... Bg7 {[%clk 0:04:56.7]}
7. c3 {[%clk 0:04:40.7]} 7... b6 {[%clk 0:04:56.1]} 8. Nf3 {[%clk 0:04:38.4]}
8... Bb7 {[%clk 0:04:55.4]} 9. O-O {[%clk 0:04:35.9]} 9... Nf6 {[%clk
0:04:54.5]} 10. Nbd2 {[%clk 0:04:27.9]} 10... Qa8 {[%clk 0:04:53.6]} 11. Re1
{[%clk 0:04:16.7]} 11... h5 {[%clk 0:04:52.5]} 12. Be5 {[%clk 0:04:13.5]} 12...
h4 {[%clk 0:04:47.8]} 13. Nxg5 {[%clk 0:03:50]} 13... h3 {[%clk 0:04:36.4]} 14.
Ngf3 {[%clk 0:03:21.4]} 14... d6 {[%clk 0:04:33.7]} 15. Bg3 {[%clk 0:03:17.5]}
15... hxg2 {[%clk 0:04:32.5]} 16. Kxg2 {[%clk 0:03:13.4]} 16... Ne4 {[%clk
0:04:29.9]} 17. Nxe4 {[%clk 0:03:08.5]} 17... Bxe4 {[%clk 0:04:29.8]} 18. c4
{[%clk 0:02:50.9]} 18... Qc8 {[%clk 0:04:28.2]} 19. Kf1 {[%clk 0:02:35.2]} 19...
Qh3+ {[%clk 0:04:21.5]} 20. Ke2 {[%clk 0:02:31.3]} 20... Qg4 {[%clk 0:04:20.6]}
21. Kd2 {[%clk 0:02:22.4]} 21... Bxf3 {[%clk 0:04:17.5]} 22. Qc2 {[%clk
0:02:20.7]} 22... Nb4 {[%clk 0:04:12.7]} 23. Qc3 {[%clk 0:02:14.2]} 23... c5
{[%clk 0:03:54.8]} 24. a3 {[%clk 0:02:10.9]} 24... cxd4 {[%clk 0:03:51.6]} 25.
exd4 {[%clk 0:02:08.3]} 25... Bxd4 {[%clk 0:03:47.1]} 26. Qc1 {[%clk 0:01:56.7]}
26... Qg5+ {[%clk 0:03:42.9]} 27. Re3 {[%clk 0:01:45.7]} 27... Bxe3+ {[%clk
0:03:42.1]} 28. fxe3 {[%clk 0:01:45.1]} 28... Nc6 {[%clk 0:03:26.1]} 29. Qc3
{[%clk 0:01:35.8]} 29... Rxh2+ {[%clk 0:03:23.2]} 30. Bxh2 {[%clk 0:01:33.2]}
30... Qg2+ {[%clk 0:03:23.1]} 31. Kc1 {[%clk 0:01:16.5]} 31... Qf1+ {[%clk
0:03:14.8]} 32. Kc2 {[%clk 0:01:11.1]} 32... Qxa1 {[%clk 0:03:14.7]} 33. Qh8+
{[%clk 0:01:09.1]} 33... Kd7 {[%clk 0:03:13.2]} 34. Qh3+ {[%clk 0:01:05]} 34...
Kc7 {[%clk 0:03:04]} 35. Qxf3 {[%clk 0:01:03.7]} 35... Qe1 {[%clk 0:02:53.6]}
36. Bg3 {[%clk 0:00:48.8]} 36... Qg1 {[%clk 0:02:50]} 37. Qf2 {[%clk 0:00:47.1]}
37... Qxf2+ {[%clk 0:02:47.5]} 38. Bxf2 {[%clk 0:00:46.3]} 38... Ne5 {[%clk
0:02:46.6]} 39. b3 {[%clk 0:00:41.1]} 39... Ng4 {[%clk 0:02:45.8]} 40. Bg1
{[%clk 0:00:39.2]} 40... f5 {[%clk 0:02:42.8]} 41. Kd3 {[%clk 0:00:36.8]} 41...
e5 {[%clk 0:02:37]} 42. Ke2 {[%clk 0:00:34.1]} 42... f4 {[%clk 0:02:36.3]} 43.
exf4 {[%clk 0:00:32.8]} 43... exf4 {[%clk 0:02:27.2]} 44. Kf3 {[%clk 0:00:31.8]}
44... Ne5+ {[%clk 0:02:22]} 45. Kxf4 {[%clk 0:00:30.5]} 45... a4 {[%clk
0:02:21.4]} 46. Bd4 {[%clk 0:00:22.7]} 46... Ng6+ {[%clk 0:02:10.8]} 47. Ke3
{[%clk 0:00:21.1]} 47... axb3 {[%clk 0:02:09.1]} 48. Kd3 {[%clk 0:00:19.6]}
48... Ne7 {[%clk 0:02:04.8]} 49. Kc3 {[%clk 0:00:18.9]} 49... Nc6 {[%clk
0:02:03.4]} 50. Kxb3 {[%clk 0:00:18.2]} 50... Nxd4+ {[%clk 0:02:02.6]} 51. Kb4
{[%clk 0:00:18.1]} 51... Kc6 {[%clk 0:02:01.2]} 52. a4 {[%clk 0:00:18]} 52...
Ne6 {[%clk 0:01:58.8]} 53. a5 {[%clk 0:00:17.9]} 53... bxa5+ {[%clk 0:01:58.4]}
54. Kxa5 {[%clk 0:00:17.5]} 54... Kc5 {[%clk 0:01:58.3]} 55. Ka4 {[%clk
0:00:16.8]} 55... Kxc4 {[%clk 0:01:58.2]} 56. Ka3 {[%clk 0:00:15.8]} 56... d5
{[%clk 0:01:58.1]} 57. Kb2 {[%clk 0:00:14.8]} 57... d4 {[%clk 0:01:58]} 58. Kc2
{[%clk 0:00:14.5]} 58... d3+ {[%clk 0:01:57.9]} 59. Kd2 {[%clk 0:00:14.1]} 59...
Kd4 {[%clk 0:01:57.8]} 60. Kd1 {[%clk 0:00:13.7]} 60... Ke3 {[%clk 0:01:57.7]}
61. Ke1 {[%clk 0:00:12.8]} 61... Nd4 {[%clk 0:01:57.6]} 62. Kd1 {[%clk
0:00:12.7]} 62... Nb5 {[%clk 0:01:57.2]} 63. Ke1 {[%clk 0:00:12.6]} 63... Nc3
{[%clk 0:01:56]} 64. Kf1 {[%clk 0:00:11.7]} 64... d2 {[%clk 0:01:55.9]} 65. Kg2
{[%clk 0:00:11.5]} 65... d1=Q {[%clk 0:01:55.8]} 66. Kh3 {[%clk 0:00:11]} 66...
Qh5+ {[%clk 0:01:54.4]} 0-1